[Event "Late-Titled-Tuesday-Blitz-January-30-2024"]
[Site "Chess.com"]
[Date "2024.01.30"]
[Round "5"]
[White "familijatop71"]
[Black "ccccvhhhj"]
[Result "0-1"]
[WhiteElo "2227"]
[BlackElo "2421"]
[TimeControl "180+1"]
[EndTime "14:58:46 PST"]
[Termination "ccccvhhhj won on time"]

1. e4 {[%clk 0:03:00.9]} 1... e5 {[%clk 0:03:00.5]} 2. Nf3 {[%clk 0:02:58.3]}
2... Nc6 {[%clk 0:03:00.2]} 3. Bc4 {[%clk 0:02:56.8]} 3... Nf6 {[%clk
0:02:59.4]} 4. d3 {[%clk 0:02:55.9]} 4... h6 {[%clk 0:02:59.1]} 5. O-O {[%clk
0:02:54.2]} 5... d6 {[%clk 0:02:53]} 6. c3 {[%clk 0:02:52.4]} 6... Bg4 {[%clk
0:02:53.4]} 7. Re1 {[%clk 0:02:49]} 7... Qd7 {[%clk 0:02:51.5]} 8. b4 {[%clk
0:02:39]} 8... O-O-O {[%clk 0:02:50]} 9. a4 {[%clk 0:02:37.7]} 9... g5 {[%clk
0:02:49]} 10. Be3 {[%clk 0:02:27.6]} 10... Be6 {[%clk 0:02:38.7]} 11. Bb5 {[%clk
0:02:21.7]} 11... Kb8 {[%clk 0:02:34.6]} 12. Na3 {[%clk 0:02:18.9]} 12... g4
{[%clk 0:02:23.8]} 13. Nd2 {[%clk 0:02:16]} 13... h5 {[%clk 0:02:24.3]} 14. Nac4
{[%clk 0:01:58.9]} 14... Qe8 {[%clk 0:02:19.9]} 15. Na5 {[%clk 0:01:57.1]} 15...
Bd7 {[%clk 0:02:20.4]} 16. Nxc6+ {[%clk 0:01:46.6]} 16... Bxc6 {[%clk
0:02:20.6]} 17. c4 {[%clk 0:01:40.2]} 17... Bh6 {[%clk 0:02:19.5]} 18. Bxc6
{[%clk 0:01:37.5]} 18... Qxc6 {[%clk 0:02:18]} 19. b5 {[%clk 0:01:36.2]} 19...
Qd7 {[%clk 0:02:15.2]} 20. a5 {[%clk 0:01:34.6]} 20... Bxe3 {[%clk 0:02:15.4]}
21. Rxe3 {[%clk 0:01:34.5]} 21... h4 {[%clk 0:02:15.2]} 22. a6 {[%clk
0:01:22.7]} 22... b6 {[%clk 0:02:14.1]} 23. Nb1 {[%clk 0:01:09.3]} 23... Rdg8
{[%clk 0:02:13.2]} 24. Na3 {[%clk 0:01:07.6]} 24... g3 {[%clk 0:02:11.6]} 25.
fxg3 {[%clk 0:00:50.3]} 25... Ng4 {[%clk 0:02:10]} 26. Rf3 {[%clk 0:00:40.5]}
26... Nxh2 {[%clk 0:02:10]} 27. Kxh2 {[%clk 0:00:29.6]} 27... hxg3+ {[%clk
0:02:10.3]} 28. Kg1 {[%clk 0:00:28.5]} 28... Qg4 {[%clk 0:02:10.4]} 29. Kf1
{[%clk 0:00:15.6]} 29... Rh1+ {[%clk 0:02:09.4]} 30. Ke2 {[%clk 0:00:16.2]}
30... Rxd1 {[%clk 0:02:09]} 31. Rxd1 {[%clk 0:00:17.1]} 31... Rh8 {[%clk
0:02:04]} 32. Nc2 {[%clk 0:00:16.6]} 32... Rh2 {[%clk 0:02:04.3]} 33. Rg1 {[%clk
0:00:16.3]} 33... Qh5 {[%clk 0:01:50.8]} 34. Nb4 {[%clk 0:00:16]} 34... Rh4
{[%clk 0:01:41.3]} 35. Nc6+ {[%clk 0:00:15.5]} 35... Ka8 {[%clk 0:01:36.5]} 36.
Kd2 {[%clk 0:00:14.8]} 36... Rf4 {[%clk 0:01:29.3]} 37. Rxg3 {[%clk 0:00:13.5]}
37... Rg4 {[%clk 0:01:26.2]} 38. Rxg4 {[%clk 0:00:13.1]} 38... Qxg4 {[%clk
0:01:27.1]} 39. Ke3 {[%clk 0:00:07.4]} 39... Qg3+ {[%clk 0:01:26.3]} 40. Ke2
{[%clk 0:00:07.2]} 40... Qg4+ {[%clk 0:01:26.1]} 41. Ke3 {[%clk 0:00:07.5]}
41... Qf4+ {[%clk 0:01:26.4]} 42. Ke2 {[%clk 0:00:07.6]} 42... Qh2 {[%clk
0:01:26.4]} 43. Rf1 {[%clk 0:00:07.3]} 43... Qxg2+ {[%clk 0:01:26.7]} 44. Rf2
{[%clk 0:00:08]} 44... Qg4+ {[%clk 0:01:27.2]} 45. Ke3 {[%clk 0:00:07.5]} 45...
f6 {[%clk 0:01:26.1]} 46. Rf5 {[%clk 0:00:05.6]} 46... Qg3+ {[%clk 0:01:24.7]}
47. Rf3 {[%clk 0:00:04.7]} 47... Qg5+ {[%clk 0:01:23.9]} 48. Ke2 {[%clk
0:00:04.7]} 48... Qh6 {[%clk 0:01:23.9]} 49. Rg3 {[%clk 0:00:04.3]} 49... Qh5+
{[%clk 0:01:22.9]} 50. Kf2 {[%clk 0:00:04.1]} 50... Qh2+ {[%clk 0:01:22.6]} 51.
Rg2 {[%clk 0:00:04.6]} 51... Qf4+ {[%clk 0:01:22.5]} 52. Kg1 {[%clk 0:00:05]}
52... Qe3+ {[%clk 0:01:20.4]} 53. Kh2 {[%clk 0:00:05.5]} 53... Qf4+ {[%clk
0:01:17.8]} 54. Kg1 {[%clk 0:00:05.9]} 54... Qe3+ {[%clk 0:01:15]} 55. Kh2
{[%clk 0:00:06.5]} 55... Qh6+ {[%clk 0:01:15.9]} 56. Kg1 {[%clk 0:00:06.8]}
56... Qh7 {[%clk 0:01:15.9]} 57. Kf2 {[%clk 0:00:05.6]} 57... f5 {[%clk
0:01:15.9]} 58. exf5 {[%clk 0:00:05.4]} 58... Qxf5+ {[%clk 0:01:16.8]} 59. Kg1
{[%clk 0:00:05.4]} 59... Qh7 {[%clk 0:01:15.9]} 60. Rf2 {[%clk 0:00:04.7]} 60...
Qg7+ {[%clk 0:01:12.6]} 61. Rg2 {[%clk 0:00:05]} 61... Qh6 {[%clk 0:01:08.8]}
62. Rf2 {[%clk 0:00:04.5]} 62... e4 {[%clk 0:01:04.1]} 63. dxe4 {[%clk
0:00:03.7]} 63... Qc1+ {[%clk 0:01:01.4]} 64. Kg2 {[%clk 0:00:03.9]} 64... Qg5+
{[%clk 0:01:01.2]} 65. Kf1 {[%clk 0:00:03.4]} 65... Qg7 {[%clk 0:00:58.8]} 66.
Rg2 {[%clk 0:00:02.8]} 66... Qa1+ {[%clk 0:00:58.1]} 67. Kf2 {[%clk 0:00:02.8]}
67... Qb2+ {[%clk 0:00:58.4]} 68. Kg1 {[%clk 0:00:03]} 68... Qc1+ {[%clk
0:00:58.8]} 69. Kh2 {[%clk 0:00:03.4]} 69... Qf4+ {[%clk 0:00:58.2]} 70. Kg1
{[%clk 0:00:03.9]} 70... Qe3+ {[%clk 0:00:58.2]} 71. Kh2 {[%clk 0:00:03.8]}
71... Qh6+ {[%clk 0:00:58.5]} 72. Kg1 {[%clk 0:00:04.1]} 72... Qf8 {[%clk
0:00:56.5]} 73. Rf2 {[%clk 0:00:04.4]} 73... Qg8+ {[%clk 0:00:56.2]} 74. Rg2
{[%clk 0:00:04.9]} 74... Qxc4 {[%clk 0:00:55.5]} 75. Rh2 {[%clk 0:00:04.1]}
75... Qc1+ {[%clk 0:00:51.2]} 76. Kg2 {[%clk 0:00:03.8]} 76... Qd2+ {[%clk
0:00:48.4]} 77. Kg1 {[%clk 0:00:03.9]} 77... Qe1+ {[%clk 0:00:48.5]} 78. Kg2
{[%clk 0:00:04.5]} 78... Qxe4+ {[%clk 0:00:48.7]} 79. Kg1 {[%clk 0:00:05.1]}
79... Qe3+ {[%clk 0:00:42.7]} 80. Kg2 {[%clk 0:00:05]} 80... Qg5+ {[%clk
0:00:42]} 81. Kh1 {[%clk 0:00:05]} 81... Qd5+ {[%clk 0:00:39.9]} 82. Kg1 {[%clk
0:00:04.7]} 82... Qd1+ {[%clk 0:00:38.4]} 83. Kg2 {[%clk 0:00:04.8]} 83... Qg4+
{[%clk 0:00:37.7]} 84. Kh1 {[%clk 0:00:04.7]} 84... Qg8 {[%clk 0:00:37.9]} 85.
Rg2 {[%clk 0:00:04.7]} 85... Qe8 {[%clk 0:00:36.5]} 86. Rf2 {[%clk 0:00:03.5]}
86... d5 {[%clk 0:00:36.1]} 87. Kg1 {[%clk 0:00:03.8]} 87... d4 {[%clk
0:00:35.6]} 88. Kf1 {[%clk 0:00:04]} 88... d3 {[%clk 0:00:35.7]} 89. Rd2 {[%clk
0:00:03.8]} 89... Qf7+ {[%clk 0:00:32.6]} 90. Ke1 {[%clk 0:00:04.1]} 90... Qe6+
{[%clk 0:00:29.4]} 91. Kd1 {[%clk 0:00:03.4]} 91... Qb3+ {[%clk 0:00:29.6]} 92.
Ke1 {[%clk 0:00:03]} 92... Qxb5 {[%clk 0:00:30.2]} 93. Nd4 {[%clk 0:00:01.7]}
93... Qe5+ {[%clk 0:00:28.5]} 0-1

[Event "Late-Titled-Tuesday-Blitz-January-30-2024"]
[Site "Chess.com"]
[Date "2024.01.30"]
[Round "5"]
[White "Bryanl106"]
[Black "Akhayan"]
[Result "0-1"]
[WhiteElo "2536"]
[BlackElo "2359"]
[TimeControl "180+1"]
[EndTime "14:59:19 PST"]
[Termination "Akhayan won by checkmate"]

1. e4 {[%clk 0:03:00.9]} 1... c5 {[%clk 0:02:58.9]} 2. Nf3 {[%clk 0:03:01.2]}
2... e6 {[%clk 0:02:58.9]} 3. d4 {[%clk 0:03:01.9]} 3... cxd4 {[%clk 0:02:59.1]}
4. Nxd4 {[%clk 0:03:02.8]} 4... Nf6 {[%clk 0:02:59.1]} 5. Nc3 {[%clk 0:03:03.1]}
5... d6 {[%clk 0:02:59.7]} 6. g4 {[%clk 0:03:00.4]} 6... d5 {[%clk 0:02:56.9]}
7. exd5 {[%clk 0:02:57.2]} 7... Nxd5 {[%clk 0:02:56.8]} 8. Bb5+ {[%clk
0:02:53.7]} 8... Bd7 {[%clk 0:02:56.2]} 9. Nxd5 {[%clk 0:02:52.9]} 9... exd5
{[%clk 0:02:55.3]} 10. O-O {[%clk 0:02:47.4]} 10... Be7 {[%clk 0:02:53.6]} 11.
Bxd7+ {[%clk 0:02:44.6]} 11... Qxd7 {[%clk 0:02:52.7]} 12. Nf5 {[%clk
0:02:44.3]} 12... O-O {[%clk 0:02:52.4]} 13. Qxd5 {[%clk 0:02:44.2]} 13... Bf6
{[%clk 0:02:35.4]} 14. Qxd7 {[%clk 0:02:43.2]} 14... Nxd7 {[%clk 0:02:35.1]} 15.
g5 {[%clk 0:02:43]} 15... Be5 {[%clk 0:02:32.6]} 16. Rd1 {[%clk 0:02:39.9]}
16... Nb6 {[%clk 0:02:30.9]} 17. c3 {[%clk 0:02:35.5]} 17... Rfe8 {[%clk
0:02:19.8]} 18. Be3 {[%clk 0:02:30.3]} 18... Nc4 {[%clk 0:02:13]} 19. Rab1
{[%clk 0:02:24.3]} 19... g6 {[%clk 0:02:12]} 20. Bd4 {[%clk 0:02:22.4]} 20...
gxf5 {[%clk 0:02:07.1]} 21. Bxe5 {[%clk 0:02:21.7]} 21... Nxe5 {[%clk 0:02:06]}
22. Kg2 {[%clk 0:02:21.2]} 22... Rad8 {[%clk 0:02:00.1]} 23. Rxd8 {[%clk
0:02:19.2]} 23... Rxd8 {[%clk 0:02:00]} 24. Re1 {[%clk 0:02:20.1]} 24... Nc6
{[%clk 0:01:58.1]} 25. b4 {[%clk 0:02:19.3]} 25... a6 {[%clk 0:01:57.5]} 26. a4
{[%clk 0:02:18.7]} 26... Kf8 {[%clk 0:01:44.2]} 27. b5 {[%clk 0:02:17.5]} 27...
axb5 {[%clk 0:01:44.8]} 28. axb5 {[%clk 0:02:18.4]} 28... Ne7 {[%clk 0:01:44.9]}
29. Ra1 {[%clk 0:02:16.3]} 29... Rc8 {[%clk 0:01:30.9]} 30. Ra7 {[%clk
0:02:15.1]} 30... b6 {[%clk 0:01:29.5]} 31. Rd7 {[%clk 0:02:01.3]} 31... Rxc3
{[%clk 0:01:26.6]} 32. Rd8+ {[%clk 0:01:55.9]} 32... Kg7 {[%clk 0:01:26]} 33.
Rd6 {[%clk 0:01:56.8]} 33... Nc8 {[%clk 0:01:22.7]} 34. Rd8 {[%clk 0:01:56.8]}
34... Rc5 {[%clk 0:01:20.6]} 35. h4 {[%clk 0:01:53.6]} 35... h5 {[%clk
0:01:14.8]} 36. gxh6+ {[%clk 0:01:31.7]} 36... Kxh6 {[%clk 0:01:14.5]} 37. Kg3
{[%clk 0:01:32.6]} 37... Ne7 {[%clk 0:01:08.5]} 38. Rd7 {[%clk 0:01:30.7]} 38...
Ng6 {[%clk 0:01:04.1]} 39. Rxf7 {[%clk 0:01:30.2]} 39... Rxb5 {[%clk 0:01:00.2]}
40. f3 {[%clk 0:01:30.1]} 40... Rc5 {[%clk 0:00:50.6]} 41. Rb7 {[%clk
0:01:28.3]} 41... b5 {[%clk 0:00:50.7]} 42. Rb8 {[%clk 0:01:25.7]} 42... f4+
{[%clk 0:00:43.3]} 43. Kg4 {[%clk 0:01:23.6]} 43... Rh5 {[%clk 0:00:29.4]} 44.
Rb6 {[%clk 0:01:17.3]} 44... Rxh4+ {[%clk 0:00:28.9]} 45. Kf5 {[%clk 0:01:17.6]}
45... Rh5+ {[%clk 0:00:29.2]} 46. Kf6 {[%clk 0:01:18]} 46... Rh1 {[%clk
0:00:23.6]} 47. Rxb5 {[%clk 0:01:17.4]} 47... Rg1 {[%clk 0:00:22]} 48. Rb2
{[%clk 0:01:15.9]} 48... Kh7 {[%clk 0:00:18.8]} 49. Rh2+ {[%clk 0:01:15.4]}
49... Kg8 {[%clk 0:00:18.4]} 50. Rh6 {[%clk 0:01:15.5]} 50... Nf8 {[%clk
0:00:16.8]} 51. Kf5 {[%clk 0:01:15.7]} 51... Kf7 {[%clk 0:00:16.3]} 52. Kxf4
{[%clk 0:01:13.7]} 52... Rg6 {[%clk 0:00:15.8]} 53. Rh1 {[%clk 0:01:13.5]} 53...
Ne6+ {[%clk 0:00:15.8]} 54. Ke5 {[%clk 0:01:11.9]} 54... Rg5+ {[%clk 0:00:14.6]}
55. Ke4 {[%clk 0:01:12]} 55... Nc5+ {[%clk 0:00:14.1]} 56. Ke3 {[%clk
0:01:11.5]} 56... Re5+ {[%clk 0:00:13.3]} 57. Kf4 {[%clk 0:01:08.8]} 57... Rd5
{[%clk 0:00:12.9]} 58. Ra1 {[%clk 0:01:07.4]} 58... Ne6+ {[%clk 0:00:12.1]} 59.
Kg3 {[%clk 0:01:07.5]} 59... Rd3 {[%clk 0:00:12.2]} 60. Kg4 {[%clk 0:01:06.5]}
60... Kf6 {[%clk 0:00:12.8]} 61. Rh1 {[%clk 0:01:04.2]} 61... Rd4+ {[%clk
0:00:13.2]} 62. Kg3 {[%clk 0:01:04.1]} 62... Ke5 {[%clk 0:00:13.8]} 63. Rh6
{[%clk 0:01:03.5]} 63... Kd6 {[%clk 0:00:14.4]} 64. Rh5 {[%clk 0:01:01.2]} 64...
Rc4 {[%clk 0:00:14.6]} 65. Ra5 {[%clk 0:01:00.5]} 65... Rc5 {[%clk 0:00:13.5]}
66. Ra8 {[%clk 0:01:00.1]} 66... Ke5 {[%clk 0:00:13.4]} 67. Ra4 {[%clk 0:00:58]}
67... Rc3 {[%clk 0:00:12.7]} 68. Ra5+ {[%clk 0:00:56.7]} 68... Kf6 {[%clk
0:00:13.1]} 69. Kg4 {[%clk 0:00:54.7]} 69... Nd4 {[%clk 0:00:12.3]} 70. f4
{[%clk 0:00:53.1]} 70... Rc1 {[%clk 0:00:12.2]} 71. Ra6+ {[%clk 0:00:52.9]}
71... Kf7 {[%clk 0:00:11.7]} 72. Kg5 {[%clk 0:00:35.8]} 72... Rg1+ {[%clk
0:00:11.7]} 73. Kh5 {[%clk 0:00:35.7]} 73... Nf5 {[%clk 0:00:10.8]} 74. Ra7+
{[%clk 0:00:33.1]} 74... Ke6 {[%clk 0:00:10.2]} 75. Ra6+ {[%clk 0:00:33.5]}
75... Kd5 {[%clk 0:00:10]} 76. Ra5+ {[%clk 0:00:32.7]} 76... Ke4 {[%clk
0:00:10.4]} 77. Ra4+ {[%clk 0:00:33]} 77... Kf3 {[%clk 0:00:10.6]} 78. Ra3+
{[%clk 0:00:32.9]} 78... Kxf4 {[%clk 0:00:10.9]} 79. Ra4+ {[%clk 0:00:31.4]}
79... Ke5 {[%clk 0:00:10.9]} 80. Ra5+ {[%clk 0:00:31.9]} 80... Kf6 {[%clk
0:00:10.6]} 81. Ra6+ {[%clk 0:00:32.3]} 81... Ke5 {[%clk 0:00:10.8]} 82. Ra5+
{[%clk 0:00:32.7]} 82... Ke4 {[%clk 0:00:11.2]} 83. Ra4+ {[%clk 0:00:33.2]}
83... Nd4 {[%clk 0:00:11.8]} 84. Kh6 {[%clk 0:00:30.1]} 84... Ke5 {[%clk
0:00:11.7]} 85. Kh7 {[%clk 0:00:28.4]} 85... Ne6 {[%clk 0:00:12]} 86. Ra2 {[%clk
0:00:26.1]} 86... Kf5 {[%clk 0:00:11.7]} 87. Rf2+ {[%clk 0:00:25.6]} 87... Nf4
{[%clk 0:00:12.4]} 88. Ra2 {[%clk 0:00:24.5]} 88... Kf6 {[%clk 0:00:12.4]} 89.
Rf2 {[%clk 0:00:19.3]} 89... Rg4 {[%clk 0:00:12.3]} 90. Rf1 {[%clk 0:00:18]}
90... Kf7 {[%clk 0:00:12]} 91. Kh6 {[%clk 0:00:16.2]} 91... Kf6 {[%clk 0:00:12]}
92. Kh7 {[%clk 0:00:16]} 92... Kf5 {[%clk 0:00:10.9]} 93. Ra1 {[%clk 0:00:14.7]}
93... Ne6 {[%clk 0:00:10.4]} 94. Rf1+ {[%clk 0:00:14.3]} 94... Kg5 {[%clk
0:00:10.7]} 95. Kg8 {[%clk 0:00:13.5]} 95... Kg6 {[%clk 0:00:10.2]} 96. Ra1
{[%clk 0:00:12.5]} 96... Rc4 {[%clk 0:00:10]} 97. Rg1+ {[%clk 0:00:12.5]} 97...
Ng5 {[%clk 0:00:10.4]} 98. Kf8 {[%clk 0:00:12.6]} 98... Kf6 {[%clk 0:00:10.5]}
99. Rf1+ {[%clk 0:00:13.1]} 99... Ke6 {[%clk 0:00:10.2]} 100. Re1+ {[%clk
0:00:13.3]} 100... Kd6 {[%clk 0:00:10.1]} 101. Kg7 {[%clk 0:00:13.1]} 101...
Ne6+ {[%clk 0:00:09.8]} 102. Kf6 {[%clk 0:00:13.2]} 102... Rf4+ {[%clk
0:00:09.8]} 103. Kg6 {[%clk 0:00:13.9]} 103... Rf2 {[%clk 0:00:10.3]} 104. Rd1+
{[%clk 0:00:13.9]} 104... Ke7 {[%clk 0:00:10.8]} 105. Kh5 {[%clk 0:00:13.2]}
105... Rg2 {[%clk 0:00:10.9]} 106. Kh4 {[%clk 0:00:13.4]} 106... Kf6 {[%clk
0:00:11.2]} 107. Rf1+ {[%clk 0:00:13.5]} 107... Ke5 {[%clk 0:00:10.8]} 108. Re1+
{[%clk 0:00:13.6]} 108... Kf5 {[%clk 0:00:11.3]} 109. Rf1+ {[%clk 0:00:14.1]}
109... Nf4 {[%clk 0:00:11.8]} 110. Rf3 {[%clk 0:00:11.6]} 110... Rg4# {[%clk
0:00:11.3]} 0-1

[Event "Late-Titled-Tuesday-Blitz-January-30-2024"]
[Site "Chess.com"]
[Date "2024.01.30"]
[Round "5"]
[White "Hui_Li_Macau"]
[Black "Siemba"]
[Result "1/2-1/2"]
[WhiteElo "2344"]
[BlackElo "2538"]
[TimeControl "180+1"]
[EndTime "14:59:47 PST"]
[Termination "Game drawn by stalemate"]

1. e4 {[%clk 0:03:00.8]} 1... e5 {[%clk 0:02:59.5]} 2. Nf3 {[%clk 0:03:00.5]}
2... Nc6 {[%clk 0:03:00.1]} 3. Bb5 {[%clk 0:03:01]} 3... a6 {[%clk 0:02:59.7]}
4. Ba4 {[%clk 0:03:01.5]} 4... d6 {[%clk 0:03:00.4]} 5. c3 {[%clk 0:02:59]} 5...
f5 {[%clk 0:02:59.6]} 6. exf5 {[%clk 0:02:53.8]} 6... Bxf5 {[%clk 0:03:00.5]} 7.
O-O {[%clk 0:02:52.7]} 7... Bd3 {[%clk 0:02:54.2]} 8. Re1 {[%clk 0:02:50.2]}
8... e4 {[%clk 0:02:54.3]} 9. Nd4 {[%clk 0:02:39.6]} 9... b5 {[%clk 0:02:34.7]}
10. Nxc6 {[%clk 0:02:35.9]} 10... Qd7 {[%clk 0:02:34.6]} 11. Bc2 {[%clk
0:02:33.6]} 11... Bxc2 {[%clk 0:02:33.4]} 12. Qxc2 {[%clk 0:02:32.7]} 12... Qxc6
{[%clk 0:02:34]} 13. Qxe4+ {[%clk 0:02:31.9]} 13... Qxe4 {[%clk 0:02:33.8]} 14.
Rxe4+ {[%clk 0:02:32.8]} 14... Kd7 {[%clk 0:02:33.9]} 15. d4 {[%clk 0:02:25.2]}
15... Nf6 {[%clk 0:02:34.4]} 16. Re1 {[%clk 0:02:25.3]} 16... d5 {[%clk
0:02:24.7]} 17. Bf4 {[%clk 0:02:24.8]} 17... Ne4 {[%clk 0:02:21.8]} 18. Nd2
{[%clk 0:02:20.2]} 18... Re8 {[%clk 0:02:19.7]} 19. f3 {[%clk 0:02:09.9]} 19...
Nxd2 {[%clk 0:02:18.7]} 20. Bxd2 {[%clk 0:02:07.8]} 20... Bd6 {[%clk 0:02:18.9]}
21. Kf2 {[%clk 0:01:53.1]} 21... Ref8 {[%clk 0:02:13.7]} 22. h3 {[%clk
0:01:41.8]} 22... h5 {[%clk 0:02:13.4]} 23. Re2 {[%clk 0:01:31.7]} 23... h4
{[%clk 0:02:11.5]} 24. Kf1 {[%clk 0:01:29.5]} 24... Rf5 {[%clk 0:02:09.4]} 25.
a4 {[%clk 0:01:25.8]} 25... Rhf8 {[%clk 0:02:08.1]} 26. axb5 {[%clk 0:01:25.1]}
26... axb5 {[%clk 0:02:09]} 27. Ke1 {[%clk 0:01:20.6]} 27... b4 {[%clk
0:01:58.7]} 28. Kd1 {[%clk 0:01:16.7]} 28... b3 {[%clk 0:01:54.5]} 29. Ra7
{[%clk 0:01:02.9]} 29... Rb8 {[%clk 0:01:51.3]} 30. Be1 {[%clk 0:00:50.9]} 30...
g5 {[%clk 0:01:33.2]} 31. Bd2 {[%clk 0:00:51]} 31... Bg3 {[%clk 0:01:20.9]} 32.
Ra6 {[%clk 0:00:45.9]} 32... Bd6 {[%clk 0:01:20.2]} 33. Ra7 {[%clk 0:00:45.8]}
33... Be7 {[%clk 0:01:10.1]} 34. Ra6 {[%clk 0:00:40.7]} 34... Bf6 {[%clk
0:00:58.7]} 35. Ree6 {[%clk 0:00:35.5]} 35... Be7 {[%clk 0:00:49.6]} 36. Re2
{[%clk 0:00:25.2]} 36... Rb5 {[%clk 0:00:48.2]} 37. Ra8 {[%clk 0:00:19.9]} 37...
Bd6 {[%clk 0:00:47.4]} 38. Ra6 {[%clk 0:00:13.8]} 38... Rb7 {[%clk 0:00:29.5]}
39. Re1 {[%clk 0:00:12.4]} 39... Bg3 {[%clk 0:00:19.4]} 40. Ree6 {[%clk
0:00:12.1]} 40... Bf4 {[%clk 0:00:12.9]} 41. Rg6 {[%clk 0:00:10.2]} 41... Bxd2
{[%clk 0:00:07.4]} 42. Kxd2 {[%clk 0:00:11.1]} 42... Rf7 {[%clk 0:00:03.4]} 43.
Rxg5 {[%clk 0:00:09.9]} 43... c6 {[%clk 0:00:03.3]} 44. Rg6 {[%clk 0:00:09.9]}
44... Rc7 {[%clk 0:00:02.7]} 45. Rb6 {[%clk 0:00:09.9]} 45... Re7 {[%clk
0:00:03]} 46. Rxb3 {[%clk 0:00:09.7]} 46... c5 {[%clk 0:00:03.9]} 47. dxc5
{[%clk 0:00:08.4]} 47... Rxc5 {[%clk 0:00:03.9]} 48. Rbb6 {[%clk 0:00:08]} 48...
Kc8 {[%clk 0:00:03.5]} 49. Rbc6+ {[%clk 0:00:07.8]} 49... Rxc6 {[%clk
0:00:04.1]} 50. Rxc6+ {[%clk 0:00:08.7]} 50... Kd7 {[%clk 0:00:05]} 51. Rh6
{[%clk 0:00:08.8]} 51... Rg7 {[%clk 0:00:04.9]} 52. Rxh4 {[%clk 0:00:06.6]}
52... Rxg2+ {[%clk 0:00:05.5]} 53. Kd3 {[%clk 0:00:07]} 53... Rxb2 {[%clk
0:00:05.4]} 54. Rh7+ {[%clk 0:00:05.7]} 54... Ke6 {[%clk 0:00:05.5]} 55. Rh6+
{[%clk 0:00:06.1]} 55... Kf5 {[%clk 0:00:05.2]} 56. Rh5+ {[%clk 0:00:06.1]}
56... Ke6 {[%clk 0:00:05.4]} 57. h4 {[%clk 0:00:04.2]} 57... Rf2 {[%clk
0:00:05.2]} 58. Ke3 {[%clk 0:00:04.4]} 58... Rc2 {[%clk 0:00:05.5]} 59. Kd3
{[%clk 0:00:03.5]} 59... Rf2 {[%clk 0:00:05.7]} 60. Rh6+ {[%clk 0:00:03.9]}
60... Kf5 {[%clk 0:00:05.8]} 61. Ke3 {[%clk 0:00:04.1]} 61... Rc2 {[%clk
0:00:05.6]} 62. Kd4 {[%clk 0:00:03.9]} 62... Rd2+ {[%clk 0:00:05]} 63. Kc5
{[%clk 0:00:04.1]} 63... Rd3 {[%clk 0:00:05.5]} 64. Rd6 {[%clk 0:00:03]} 64...
Ke5 {[%clk 0:00:02.9]} 65. Rd8 {[%clk 0:00:02]} 65... Rxc3+ {[%clk 0:00:03.1]}
66. Kb4 {[%clk 0:00:02.4]} 66... Rxf3 {[%clk 0:00:03.7]} 67. h5 {[%clk
0:00:02.5]} 67... Rh3 {[%clk 0:00:03.6]} 68. Re8+ {[%clk 0:00:02.8]} 68... Kd6
{[%clk 0:00:03.7]} 69. Rd8+ {[%clk 0:00:02.6]} 69... Ke6 {[%clk 0:00:04.3]} 70.
Re8+ {[%clk 0:00:02.7]} 70... Kd7 {[%clk 0:00:04.8]} 71. Re5 {[%clk 0:00:02.9]}
71... Kd6 {[%clk 0:00:05.5]} 72. Rg5 {[%clk 0:00:03.1]} 72... Ke6 {[%clk
0:00:05.5]} 73. Kc5 {[%clk 0:00:02.6]} 73... Rc3+ {[%clk 0:00:05.1]} 74. Kd4
{[%clk 0:00:02.9]} 74... Rc4+ {[%clk 0:00:05.6]} 75. Kd3 {[%clk 0:00:03.4]}
75... Rh4 {[%clk 0:00:06]} 76. Ke3 {[%clk 0:00:02.3]} 76... Rh3+ {[%clk
0:00:04.5]} 77. Kd4 {[%clk 0:00:02.6]} 77... Rh4+ {[%clk 0:00:04.3]} 78. Ke3
{[%clk 0:00:02.9]} 78... Ra4 {[%clk 0:00:04]} 79. Kd3 {[%clk 0:00:03.2]} 79...
Ra5 {[%clk 0:00:03.9]} 80. Kd4 {[%clk 0:00:03.5]} 80... Rb5 {[%clk 0:00:04.2]}
81. Rg6+ {[%clk 0:00:03.4]} 81... Kf5 {[%clk 0:00:04.6]} 82. Rd6 {[%clk
0:00:03.1]} 82... Rb4+ {[%clk 0:00:04.9]} 83. Kxd5 {[%clk 0:00:02.8]} 83... Rb1
{[%clk 0:00:04.6]} 84. Kc5 {[%clk 0:00:02.8]} 84... Rc1+ {[%clk 0:00:04.8]} 85.
Kb4 {[%clk 0:00:03]} 85... Rh1 {[%clk 0:00:03.8]} 86. h6 {[%clk 0:00:03.2]}
86... Ke5 {[%clk 0:00:04.1]} 87. Rc6 {[%clk 0:00:03.4]} 87... Kd5 {[%clk
0:00:04.4]} 88. Rg6 {[%clk 0:00:03.4]} 88... Ke5 {[%clk 0:00:04.8]} 89. Kc3
{[%clk 0:00:03.4]} 89... Kf5 {[%clk 0:00:05.3]} 90. Rd6 {[%clk 0:00:03.3]} 90...
Rh3+ {[%clk 0:00:05.7]} 91. Kd4 {[%clk 0:00:03.5]} 91... Rh1 {[%clk 0:00:04.8]}
92. Ke3 {[%clk 0:00:03.3]} 92... Re1+ {[%clk 0:00:04]} 93. Kf2 {[%clk
0:00:03.6]} 93... Rh1 {[%clk 0:00:04.7]} 94. Kg2 {[%clk 0:00:03.8]} 94... Rh5
{[%clk 0:00:05.4]} 95. Kg3 {[%clk 0:00:04.1]} 95... Rg5+ {[%clk 0:00:04.5]} 96.
Kh4 {[%clk 0:00:03.9]} 96... Rg8 {[%clk 0:00:04.1]} 97. Rd5+ {[%clk 0:00:04]}
97... Kg6 {[%clk 0:00:02.9]} 98. Rg5+ {[%clk 0:00:03.5]} 98... Kh7 {[%clk
0:00:03.4]} 99. Rxg8 {[%clk 0:00:03.8]} 99... Kxg8 {[%clk 0:00:04.1]} 100. Kg5
{[%clk 0:00:04.5]} 100... Kh7 {[%clk 0:00:04.9]} 101. Kh5 {[%clk 0:00:05.1]}
101... Kg8 {[%clk 0:00:05.8]} 102. Kg6 {[%clk 0:00:05.6]} 102... Kh8 {[%clk
0:00:06.7]} 103. h7 {[%clk 0:00:06.5]} 1/2-1/2

[Event "Late-Titled-Tuesday-Blitz-January-30-2024"]
[Site "Chess.com"]
[Date "2024.01.30"]
[Round "6"]
[White "el008"]
[Black "PawnEatingZombie"]
[Result "1-0"]
[WhiteElo "2501"]
[BlackElo "2166"]
[TimeControl "180+1"]
[EndTime "15:02:47 PST"]
[Termination "el008 won by resignation"]

1. Nf3 {[%clk 0:03:00.9]} 1... Nf6 {[%clk 0:02:58.6]} 2. b3 {[%clk 0:03:01.5]}
2... g6 {[%clk 0:02:58.4]} 3. Bb2 {[%clk 0:03:02.1]} 3... Bg7 {[%clk 0:02:59]}
4. g3 {[%clk 0:03:00.8]} 4... O-O {[%clk 0:02:59.1]} 5. c4 {[%clk 0:03:01.1]}
5... d6 {[%clk 0:02:59.4]} 6. d4 {[%clk 0:03:00.4]} 6... c5 {[%clk 0:02:56.8]}
7. Bg2 {[%clk 0:02:59.1]} 7... cxd4 {[%clk 0:02:46.2]} 8. Qxd4 {[%clk
0:02:57.4]} 8... Nc6 {[%clk 0:02:43.9]} 9. Qd1 {[%clk 0:02:54.1]} 9... Bd7
{[%clk 0:02:37.8]} 10. O-O {[%clk 0:02:54]} 10... Qc8 {[%clk 0:02:36.2]} 11. Nc3
{[%clk 0:02:52.8]} 11... Bh3 {[%clk 0:02:35.4]} 12. Qd2 {[%clk 0:02:51.5]} 12...
Bxg2 {[%clk 0:02:35.2]} 13. Kxg2 {[%clk 0:02:52.4]} 13... b6 {[%clk 0:01:58.2]}
14. e4 {[%clk 0:02:52.2]} 14... Qb7 {[%clk 0:01:57.6]} 15. Rfe1 {[%clk
0:02:52.3]} 15... Rac8 {[%clk 0:01:56.3]} 16. Rac1 {[%clk 0:02:49.3]} 16... Ng4
{[%clk 0:01:53.5]} 17. h3 {[%clk 0:02:46.3]} 17... Nge5 {[%clk 0:01:53]} 18.
Nxe5 {[%clk 0:02:46.5]} 18... Nxe5 {[%clk 0:01:52.3]} 19. f4 {[%clk 0:02:41.5]}
19... Nd7 {[%clk 0:01:50.3]} 20. Nd5 {[%clk 0:02:40.2]} 20... Bxb2 {[%clk
0:01:49.4]} 21. Nxe7+ {[%clk 0:02:39.8]} 21... Kg7 {[%clk 0:01:40.4]} 22. Qxb2+
{[%clk 0:02:40.7]} 22... f6 {[%clk 0:01:39.3]} 23. Nxc8 {[%clk 0:02:41]} 23...
Rxc8 {[%clk 0:01:39.3]} 24. Qd4 {[%clk 0:02:40]} 24... Qc6 {[%clk 0:01:36.5]}
25. Rcd1 {[%clk 0:02:39.4]} 1-0